bitfinex-derivatives/quotes_BTCF0:USTF0_20250514
["timestamp","ask_amount","ask_price","bid_price","bid_amount"]
[1747230771547,0.70400605,103920.0,103910.0,0.96241845]
[1747230771749,0.59400605,103920.0,103910.0,1.20360807]
[1747230772558,0.59400605,103920.0,103910.0,0.96241845]
[1747230772749,0.59400605,103920.0,103910.0,1.20360807]
[1747230772945,0.59400605,103920.0,103910.0,0.96241845]
[1747230773144,0.6497268,103920.0,103910.0,0.45387785]
[1747230773344,1.0847268,103920.0,103910.0,0.96241845]
[1747230773850,1.0837268,103920.0,103910.0,2.46241845]
[1747230774057,1.0837268,103920.0,103910.0,2.27097315]
[1747230774242,1.0837268,103920.0,103910.0,2.46341845]
[1747230774647,1.0837268,103920.0,103910.0,2.46441845]
[1747230775349,1.0837268,103920.0,103910.0,2.46341845]
[1747230775742,0.7437268,103920.0,103910.0,2.46341845]
[1747230777956,0.7437268,103920.0,103910.0,2.27097315]
[1747230778160,1.1137268,103920.0,103910.0,2.46341845]
[1747230778560,1.1137268,103920.0,103910.0,2.27097315]
[1747230778856,1.1137268,103920.0,103910.0,2.46341845]
[1747230779345,1.1137268,103920.0,103910.0,2.27097315]
[1747230779551,1.1137268,103920.0,103910.0,2.46341845]
[1747230780260,1.1137268,103920.0,103910.0,2.27097315]
[1747230780459,1.29756815,103920.0,103910.0,0.16862071]
[1747230780661,1.61692815,103920.0,103910.0,0.13670656]
[1747230780955,1.4330868,103920.0,103910.0,0.14232727]
[1747230781155,1.0730868,103920.0,103910.0,0.14232727]
[1747230781349,1.58692815,103920.0,103910.0,0.23402727]
[1747230781548,1.58692815,103920.0,103910.0,0.14132727]
[1747230781753,1.58792815,103920.0,103910.0,0.14132727]
[1747230781949,1.58892815,103920.0,103910.0,0.14132727]
[1747230782253,1.59092815,103920.0,103910.0,0.00562071]
[1747230782461,0.1924824,103890.0,103880.0,0.3324147]
[1747230782661,0.3324824,103890.0,103880.0,0.4731392]
[1747230782854,0.3312824,103890.0,103880.0,2.2892345]
[1747230783055,0.6920824,103890.0,103880.0,2.54746699]
[1747230783559,0.73592375,103890.0,103880.0,0.162]
[1747230783760,1.62438375,103890.0,103880.0,0.162]
[1747230784147,1.62438375,103890.0,103880.0,1.508]
[1747230784349,1.62438375,103890.0,103880.0,0.008]
[1747230784549,1.72318375,103890.0,103880.0,0.008]
[1747230785058,0.8044824,103890.0,103880.0,0.28810163]
[1747230785255,0.9011824,103890.0,103880.0,0.64796118]
[1747230785452,1.08502375,103890.0,103880.0,0.45546028]
[1747230785655,1.29502375,103890.0,103880.0,0.3592]
[1747230786250,1.1111824,103890.0,103880.0,0.3897009]
[1747230786452,1.1111824,103890.0,103880.0,0.80205648]
[1747230786453,0.8111824,103890.0,103880.0,0.80205648]
[1747230787160,0.8111824,103890.0,103880.0,0.77155558]
[1747230787355,1.05263687,103890.0,103880.0,0.2666]
[1747230787969,1.0111824,103890.0,103880.0,0.2666]
[1747230788156,1.0111824,103890.0,103880.0,0.1046]
[1747230789257,1.3305824,103890.0,103880.0,0.2029]
[1747230789453,1.3305824,103890.0,103880.0,0.5189953]
[1747230790168,1.3305824,103890.0,103880.0,0.6809953]
[1747230790364,1.3305824,103890.0,103880.0,2.3734962]
[1747230791271,1.0605824,103890.0,103880.0,2.46975648]
[1747230791471,1.0705824,103890.0,103880.0,2.56435648]
[1747230791873,0.7511824,103890.0,103880.0,2.56435648]
[1747230792177,0.5620824,103890.0,103880.0,2.56435648]
[1747230792757,0.5520824,103890.0,103880.0,2.56435648]
[1747230792958,0.5520824,103890.0,103880.0,2.80581095]
[1747230793167,0.12210831,103900.0,103890.0,0.1924824]
[1747230793472,0.31457211,103900.0,103890.0,1.30673217]
[1747230793863,0.12210831,103900.0,103890.0,2.90298319]
[1747230794173,0.12210831,103900.0,103890.0,3.06498319]
[1747230794363,0.12210831,103900.0,103890.0,3.06698319]
[1747230794759,0.12210831,103900.0,103890.0,3.06898319]
[1747230794967,0.33907731,103910.0,103900.0,0.1924638]
[1747230795167,0.33907731,103910.0,103900.0,1.46311357]
[1747230795579,0.33907731,103910.0,103900.0,1.31790085]
[1747230795777,0.33907731,103910.0,103900.0,0.95710085]
[1747230795965,0.33907731,103910.0,103900.0,1.55935532]
[1747230796284,0.12209248,103910.0,103900.0,1.55935532]
[1747230796470,0.31453778,103910.0,103900.0,1.55935532]
[1747230797268,0.31453778,103910.0,103900.0,0.95910085]
[1747230798066,0.31453778,103910.0,103900.0,1.65935532]
[1747230798964,0.31453778,103910.0,103900.0,1.05710085]
[1747230799161,0.75533778,103910.0,103900.0,0.64300555]
[1747230799475,0.94343778,103910.0,103900.0,0.95910085]
[1747230799675,0.94343778,103910.0,103900.0,0.76663705]
[1747230799870,0.8213453,103910.0,103900.0,0.95910085]
[1747230800276,0.8213453,103910.0,103900.0,0.96472156]
[1747230801579,1.68135977,103910.0,103900.0,0.36356246]
[1747230801878,1.77305977,103910.0,103900.0,0.36356246]
[1747230802273,1.77305977,103910.0,103900.0,0.20156246]
[1747230802473,1.86929977,103910.0,103900.0,0.00762071]
[1747230802672,1.86929977,103910.0,103900.0,1e-08]
[1747230803078,1.8509253,103910.0,103900.0,1e-08]
[1747230803578,2.09237977,103910.0,103900.0,0.09250001]
[1747230803787,1.45449977,103910.0,103900.0,0.09250001]
[1747230803974,1.8508853,103910.0,103900.0,0.38120556]
[1747230804174,1.8508853,103910.0,103900.0,0.44254176]
[1747230804374,1.94861823,103910.0,103900.0,0.44254176]
[1747230804971,1.94861823,103910.0,103900.0,0.63500556]
[1747230805371,1.94861823,103910.0,103900.0,0.44254176]
[1747230806571,1.94861823,103910.0,103900.0,0.63500556]
[1747230806771,1.94861823,103910.0,103900.0,0.44254176]
[1747230807065,1.62905823,103910.0,103900.0,0.44254176]
[1747230807873,1.37901823,103910.0,103900.0,0.63500556]
[1747230808069,1.37901823,103910.0,103900.0,0.25824176]
[1747230808379,1.8304727,103910.0,103900.0,0.16200001]
[1747230808977,1.77252025,103910.0,103900.0,0.16200001]
[1747230809182,1.86876025,103910.0,103900.0,1e-08]
[1747230809378,1.71496622,103910.0,103900.0,1e-08]
[1747230811477,1.39672622,103910.0,103900.0,1e-08]
[1747230811874,0.87282578,103910.0,103900.0,0.31609531]
[1747230812075,1.00282578,103910.0,103900.0,0.67459531]
[1747230812482,1.00282578,103910.0,103900.0,0.86705911]
[1747230812682,1.00282578,103910.0,103900.0,0.96330086]
[1747230812880,1.00282578,103910.0,103900.0,0.77083706]
[1747230813184,1.18672622,103910.0,103900.0,0.77083706]
[1747230813681,1.37672622,103910.0,103900.0,0.67233706]
[1747230813886,1.37672622,103910.0,103900.0,0.26000001]
[1747230814082,1.37672622,103910.0,103900.0,0.16200001]
[1747230814286,1.37672622,103910.0,103900.0,1e-08]
[1747230815190,2.01284622,103910.0,103900.0,1e-08]
[1747230815375,1.73284622,103910.0,103900.0,0.41589531]
[1747230815576,0.91282578,103910.0,103900.0,0.79570086]
[1747230815876,0.72962578,103910.0,103900.0,0.79570086]
[1747230816076,0.72962578,103910.0,103900.0,0.95770086]
[1747230816987,0.91352622,103910.0,103900.0,0.76523706]
[1747230817175,1.29352622,103910.0,103900.0,0.76523706]
[1747230817376,1.70306622,103910.0,103900.0,0.16200001]
[1747230818187,1.70306622,103910.0,103900.0,1e-08]
[1747230818685,0.1925009,103880.0,103870.0,0.00192539]
[1747230818877,0.7333009,103880.0,103870.0,0.38444479]
[1747230819081,0.5533009,103880.0,103870.0,2.29678184]
[1747230819284,0.5533009,103880.0,103870.0,2.74218228]
[1747230819777,0.1925009,103880.0,103870.0,2.74718228]
[1747230819972,0.1925009,103880.0,103870.0,2.56328184]
[1747230820172,0.5533009,103880.0,103870.0,2.46378184]
[1747230820392,0.92690134,103880.0,103870.0,2.27126244]
[1747230820690,1.04690134,103880.0,103870.0,0.96378184]
[1747230820889,1.04690134,103880.0,103870.0,0.96878184]
[1747230820890,0.8630009,103880.0,103870.0,0.96878184]
[1747230821086,0.8630009,103880.0,103870.0,2.27626244]
[1747230821387,0.8630009,103880.0,103870.0,2.46878184]
[1747230821582,0.6733009,103880.0,103870.0,2.46878184]
[1747230821782,0.3125009,103880.0,103870.0,1.15268228]
[1747230822085,0.1925009,103880.0,103870.0,1.15268228]
[1747230822292,0.5533009,103880.0,103870.0,2.65268228]
[1747230822592,0.5533009,103880.0,103870.0,2.46878184]
[1747230822985,0.7516009,103880.0,103870.0,2.27626244]
[1747230823175,1.0616009,103880.0,103870.0,2.46878184]
[1747230823983,1.0616009,103880.0,103870.0,2.27626244]
[1747230824285,1.0616009,103880.0,103870.0,2.46878184]
[1747230824488,1.0616009,103880.0,103860.0,0.00144431]
[1747230824489,0.1925194,103870.0,103860.0,0.00144431]
[1747230824793,1.34861984,103870.0,103860.0,0.41723961]
[1747230825581,1.34861984,103870.0,103860.0,0.42423961]
[1747230825782,1.34861984,103870.0,103860.0,0.52143961]
[1747230826383,1.04861984,103870.0,103860.0,0.52143961]
[1747230826888,0.5733194,103870.0,103860.0,0.67661726]
[1747230827089,0.5733194,103870.0,103860.0,1.25761256]
[1747230827492,0.2125194,103870.0,103860.0,1.25761256]
[1747230827787,0.1925194,103870.0,103860.0,1.25761256]
[1747230828390,0.2025194,103870.0,103860.0,1.25761256]
[1747230828984,0.2025194,103870.0,103860.0,1.07371212]
[1747230829183,0.5633194,103870.0,103860.0,1.07371212]
[1747230829393,0.5633194,103870.0,103860.0,0.88117412]
[1747230829591,0.94561984,103870.0,103860.0,0.88117412]
[1747230829795,1.29561984,103870.0,103860.0,0.78889483]
[1747230829985,1.39561984,103870.0,103860.0,0.27932071]
[1747230830180,1.5579994,103870.0,103860.0,1e-08]
[1747230830485,1.92580028,103870.0,103860.0,1e-08]
[1747230830686,1.91304722,103870.0,103860.0,1e-08]
[1747230831188,1.91304722,103870.0,103860.0,0.00200001]
[1747230831384,0.192538,103860.0,103850.0,0.0995]
[1747230831586,0.1925565,103850.0,103840.0,0.0927]
[1747230831789,0.1925565,103850.0,103840.0,0.5055953]
[1747230831790,1.70335694,103850.0,103840.0,0.5055953]
[1747230832087,1.5194165,103850.0,103840.0,0.76387412]
[1747230832695,1.70331694,103850.0,103840.0,0.76387412]
[1747230832890,1.70331694,103850.0,103840.0,0.162]
[1747230833292,0.192575,103840.0,103830.0,3e-08]
[1747230833491,1.112475,103840.0,103830.0,3e-08]
[1747230833802,1.35418033,103840.0,103830.0,0.31609533]
[1747230833991,0.772475,103840.0,103830.0,0.31609533]
[1747230834194,0.772475,103840.0,103830.0,0.66699533]
[1747230834397,1.062475,103840.0,103830.0,0.66699533]
[1747230834801,1.065475,103840.0,103830.0,0.66699533]
[1747230834991,1.30718033,103840.0,103830.0,0.57489533]
[1747230835191,1.30918033,103840.0,103830.0,0.57489533]
[1747230835595,1.62598033,103840.0,103830.0,0.66739533]
[1747230836790,1.62598033,103840.0,103830.0,0.57489533]
[1747230837196,1.62598033,103840.0,103830.0,0.66739533]
[1747230838301,1.62598033,103840.0,103830.0,0.95629557]
[1747230838302,1.04468748,103840.0,103830.0,0.95629557]
[1747230838492,1.05832748,103840.0,103830.0,0.95629557]
[1747230838803,0.74168748,103840.0,103830.0,0.95629557]
[1747230839202,0.63168748,103840.0,103830.0,0.95629557]
[1747230840400,1.23339281,103840.0,103830.0,0.76370197]
[1747230840703,1.75663281,103840.0,103830.0,0.66739533]
[1747230841095,1.19828748,103840.0,103830.0,0.85998893]
[1747230841295,0.94816748,103840.0,103830.0,0.95629557]
[1747230842101,0.07831248,103840.0,103830.0,1.1980009]
[1747230842295,0.27088748,103840.0,103830.0,1.1980009]
[1747230842892,0.27088748,103840.0,103830.0,0.95629557]
[1747230843100,1.14339281,103840.0,103830.0,0.76370197]
[1747230843305,1.34999281,103840.0,103830.0,0.76370197]
[1747230843906,1.27668033,103840.0,103830.0,0.76370197]
[1747230844292,1.034975,103840.0,103830.0,0.76370197]
[1747230845002,0.828375,103840.0,103830.0,0.96191628]
[1747230845196,0.197575,103840.0,103830.0,0.96191628]
[1747230846511,0.558375,103840.0,103830.0,0.76932268]
[1747230846706,0.660475,103840.0,103830.0,2.26932268]
[1747230847009,0.757775,103840.0,103830.0,2.46191628]
[1747230847207,0.3658,103840.0,103830.0,2.46191628]
[1747230847408,0.197575,103840.0,103830.0,2.70362161]
[1747230847711,0.197575,103840.0,103830.0,2.46191628]
[1747230848307,0.194575,103840.0,103830.0,2.46191628]
[1747230848513,0.195575,103840.0,103830.0,0.76932268]
[1747230848814,0.616375,103840.0,103830.0,0.96191628]
[1747230849011,0.616375,103840.0,103830.0,0.76932268]
[1747230849398,1.05748033,103840.0,103830.0,0.67301604]
[1747230849605,1.42838033,103840.0,103830.0,0.76932268]
[1747230851098,1.42838033,103840.0,103830.0,0.60732268]
[1747230851299,1.186675,103840.0,103830.0,0.29122738]
[1747230851504,1.186675,103840.0,103830.0,0.60732268]
[1747230852107,1.186675,103840.0,103830.0,0.96191628]
[1747230852305,0.62968748,103840.0,103830.0,1.20362161]
[1747230852509,0.26888748,103840.0,103830.0,1.20362161]
[1747230852710,0.26888748,103840.0,103830.0,0.96191628]
[1747230853109,0.07631248,103840.0,103830.0,1.56442161]
[1747230853309,0.07631248,103840.0,103830.0,1.66072961]
[1747230853617,0.22002237,103850.0,103840.0,0.192575]
[1747230853811,0.41257887,103850.0,103840.0,1.31817563]
[1747230854121,0.64257887,103850.0,103840.0,1.2384703]
[1747230854307,0.64257887,103850.0,103840.0,1.33477694]
[1747230854707,0.64257887,103850.0,103840.0,0.78140194]
[1747230854908,0.74927887,103850.0,103840.0,0.97397694]
[1747230855616,0.64257887,103850.0,103840.0,0.97497694]
[1747230855807,0.41257887,103850.0,103840.0,0.97497694]
[1747230856007,0.1925565,103850.0,103840.0,0.97497694]
[1747230856209,0.1935565,103850.0,103840.0,1.21568227]
[1747230856519,0.1935565,103850.0,103840.0,0.97397694]
[1747230856820,0.1935565,103850.0,103840.0,2.47397694]
[1747230857025,0.1935565,103850.0,103840.0,2.57217694]
[1747230857518,0.1945565,103850.0,103840.0,2.57217694]
[1747230858408,0.1945565,103850.0,103840.0,2.81388227]
[1747230858617,0.1945565,103850.0,103840.0,2.57217694]
[1747230858816,0.1945565,103850.0,103840.0,1.07217694]
[1747230859123,0.87706183,103850.0,103840.0,0.29920664]
[1747230859318,1.12194047,103850.0,103840.0,0.61530194]
[1747230859819,0.9378565,103850.0,103840.0,0.61530194]
[1747230860117,0.9378565,103850.0,103840.0,0.77730194]
[1747230860417,0.8773565,103850.0,103840.0,0.65378164]
[1747230860611,0.1945565,103850.0,103840.0,1.15396091]
[1747230860811,0.1945565,103850.0,103840.0,1.24926091]
[1747230861220,0.1945565,103850.0,103840.0,1.07079765]
[1747230861414,0.1945565,103850.0,103840.0,1.25488162]
[1747230861615,0.1945565,103850.0,103840.0,0.93878632]
[1747230861813,0.1945565,103850.0,103840.0,1.25488162]
[1747230862318,0.1945565,103850.0,103840.0,1.61568162]
[1747230862509,0.002,103850.0,103840.0,1.61568162]
[1747230862706,0.0978349,103860.0,103840.0,1.96197762]
[1747230862912,0.0978349,103860.0,103850.0,1.25403577]
[1747230863120,0.2903729,103860.0,103850.0,1.41603577]
[1747230863510,0.0978349,103860.0,103850.0,1.51233313]
[1747230863711,0.2903729,103860.0,103850.0,1.51233313]
[1747230864210,0.2903729,103860.0,103850.0,1.51433313]
[1747230864521,0.0978349,103860.0,103850.0,1.51433313]
[1747230864918,0.43620986,103870.0,103860.0,0.192538]
[1747230865223,0.43620986,103870.0,103860.0,1.15871727]
[1747230865420,0.54430986,103870.0,103860.0,0.9746333]
[1747230865721,0.54430986,103870.0,103860.0,1.07092139]
[1747230866218,0.56430986,103870.0,103860.0,1.07092139]
[1747230866619,0.56430986,103870.0,103860.0,1.43172139]
[1747230866821,0.29179966,103870.0,103860.0,1.67315531]
[1747230867615,0.29179966,103870.0,103860.0,1.43172139]
[1747230868027,0.74409966,103870.0,103860.0,1.43272139]
[1747230868324,0.46626476,103870.0,103860.0,1.07292139]
[1747230870324,0.46626476,103870.0,103860.0,2.57292139]
[1747230870917,0.19396476,103870.0,103860.0,2.93372139]
[1747230871221,0.00144536,103870.0,103860.0,2.93372139]
[1747230871419,0.19396476,103870.0,103860.0,3.17515531]
[1747230871613,0.002,103880.0,103870.0,0.1925194]
[1747230871810,0.1945009,103880.0,103870.0,1.94598862]
[1747230872019,0.002,103880.0,103870.0,1.94598862]
[1747230872225,0.002,103880.0,103870.0,2.20426744]
[1747230872428,0.0978349,103890.0,103880.0,0.1925009]
[1747230872625,0.0978349,103890.0,103880.0,1.42203012]
[1747230872924,0.56359078,103900.0,103890.0,0.1924824]
[1747230872925,0.46128328,103900.0,103890.0,0.1924824]
[1747230873112,0.31465127,103900.0,103890.0,2.81751162]
[1747230873312,0.31465127,103900.0,103890.0,3.13183162]
[1747230873521,0.12218747,103900.0,103890.0,3.2280919]
[1747230873728,0.12218747,103900.0,103890.0,3.24254226]
[1747230874022,0.12618747,103900.0,103890.0,3.24254226]
[1747230874227,0.12618747,103900.0,103890.0,3.71846226]
[1747230874628,0.31865127,103900.0,103890.0,3.71846226]
[1747230874923,0.32265127,103900.0,103890.0,3.71846226]
[1747230875326,0.13018747,103900.0,103890.0,3.71846226]
[1747230875627,0.31865127,103900.0,103890.0,3.71846226]
[1747230876429,0.12618747,103900.0,103890.0,3.71846226]
[1747230876828,0.31865127,103900.0,103890.0,3.71846226]
[1747230877330,0.1964638,103900.0,103890.0,3.71846226]
[1747230877722,0.1934638,103900.0,103890.0,3.71846226]
[1747230877929,0.1944638,103900.0,103890.0,3.09022226]
[1747230878124,0.1944638,103900.0,103890.0,3.71798226]
[1747230878315,0.002,103900.0,103890.0,3.71798226]
[1747230878521,0.107345,103910.0,103890.0,3.52549986]
[1747230878721,0.2997903,103910.0,103900.0,1.42179302]
[1747230878921,0.2997903,103910.0,103900.0,1.1803591]
[1747230878922,0.5397903,103910.0,103900.0,1.1803591]
[1747230879127,0.6457903,103910.0,103900.0,1.3423591]
[1747230879320,0.6457903,103910.0,103900.0,2.93861012]
[1747230880229,0.4077903,103910.0,103900.0,2.93861012]
[1747230880427,0.3037903,103910.0,103900.0,2.93861012]
[1747230880624,0.3037903,103910.0,103900.0,3.18004404]
[1747230882122,0.3037903,103910.0,103900.0,2.93861012]
[1747230882735,0.4047903,103910.0,103900.0,2.93861012]
[1747230883524,0.6247903,103910.0,103900.0,1.96485102]
[1747230883836,1.0924903,103910.0,103900.0,1.95071482]
[1747230884227,1.0924903,103910.0,103900.0,0.28871482]
[1747230884529,1.0924903,103910.0,103900.0,0.09625102]
[1747230884724,1.64684422,103910.0,103900.0,1.59625102]
[1747230884924,1.96100422,103910.0,103900.0,0.09625102]
[1747230885339,1.91291202,103910.0,103880.0,0.2766]
[1747230885518,1.91291202,103910.0,103880.0,0.4691007]
[1747230885519,0.5532824,103890.0,103880.0,0.4691007]
[1747230885831,1.16471632,103890.0,103880.0,0.0699]
[1747230886037,2.47265632,103890.0,103880.0,0.0699]
[1747230886229,0.1925009,103880.0,103870.0,9e-08]
[1747230886534,1.61073479,103880.0,103870.0,9e-08]
[1747230886722,1.95700279,103880.0,103870.0,9e-08]
[1747230886919,1.71556887,103880.0,103870.0,9e-08]
[1747230887128,1.87756887,103880.0,103870.0,9e-08]
[1747230887329,1.82017817,103880.0,103870.0,9e-08]
[1747230887724,1.82017817,103880.0,103870.0,0.00300009]
[1747230888019,0.1925194,103870.0,103860.0,0.00562071]
[1747230888228,1.91974262,103870.0,103860.0,0.00562071]
[1747230888431,2.01602262,103870.0,103860.0,0.00562071]
[1747230888624,2.45006584,103870.0,103860.0,1e-08]
[1747230888829,0.1925565,103850.0,103840.0,0.34198863]
[1747230889137,2.06499972,103850.0,103840.0,0.31599723]
[1747230889435,1.7973707,103850.0,103840.0,0.31599723]
[1747230889631,0.192575,103840.0,103830.0,0.22559363]
[1747230889938,0.900375,103840.0,103830.0,0.12929739]
[1747230890126,1.1420932,103840.0,103830.0,0.12929739]
[1747230890730,0.900375,103840.0,103830.0,0.32189099]
[1747230890931,0.900375,103840.0,103830.0,0.32589099]
[1747230891128,1.004575,103840.0,103830.0,0.13529739]
[1747230891329,1.2462932,103840.0,103830.0,0.13529739]
[1747230892136,1.2462932,103840.0,103830.0,0.32789099]
[1747230892436,1.004575,103840.0,103830.0,0.64398629]
[1747230893024,1.004575,103840.0,103830.0,0.85018629]
[1747230893237,0.812,103840.0,103830.0,1.01218629]
[1747230893434,0.296775,103840.0,103830.0,1.01218629]
[1747230893638,0.7474394,103850.0,103840.0,0.192575]
[1747230893941,0.8472394,103850.0,103840.0,0.7148703]
[1747230894146,0.9948994,103850.0,103840.0,0.8768703]
[1747230894342,0.9948994,103850.0,103840.0,0.97317694]
[1747230894529,0.3405132,103850.0,103840.0,0.89879984]
[1747230894729,0.3879258,103860.0,103850.0,0.1925565]
[1747230894929,0.4877258,103860.0,103850.0,0.7148518]
[1747230895137,0.4877258,103860.0,103850.0,0.8768518]
[1747230895441,0.4877258,103860.0,103850.0,0.97314916]
[1747230896537,0.7177258,103860.0,103850.0,0.97314916]
[1747230896737,1.321244,103860.0,103850.0,0.78059266]
[1747230897240,1.321244,103860.0,103850.0,0.97314916]
[1747230897432,0.4987258,103860.0,103850.0,0.97314916]
[1747230897834,0.4887258,103860.0,103850.0,0.97314916]
[1747230898036,0.3896258,103860.0,103850.0,0.97314916]
[1747230898541,0.193538,103860.0,103850.0,1.21486736]
[1747230898732,0.193538,103860.0,103850.0,0.97314916]
[1747230899539,0.193538,103860.0,103850.0,1.00614916]
[1747230899738,0.4590543,103880.0,103850.0,1.46424586]
[1747230899941,1.0709029,103880.0,103870.0,0.5086147]
[1747230900131,0.5501029,103880.0,103870.0,0.6706147]
[1747230900331,0.5019737,103880.0,103870.0,0.8781147]
[1747230900532,0.5019737,103880.0,103870.0,2.47440279]
[1747230900734,0.5019737,103880.0,103870.0,2.4800235]
[1747230900939,0.5009737,103880.0,103870.0,2.4800235]
[1747230901142,0.8617737,103880.0,103870.0,2.4800235]
[1747230901543,0.8617737,103880.0,103870.0,2.2875041]
[1747230901731,0.8617737,103880.0,103870.0,2.4800235]
[1747230902133,0.5009737,103880.0,103870.0,2.4800235]
[1747230902439,0.8617737,103880.0,103870.0,2.4800235]
[1747230902832,0.9417737,103880.0,103870.0,2.4800235]
[1747230903235,1.1834919,103880.0,103870.0,2.4800235]
[1747230903440,0.9417737,103880.0,103870.0,2.48194889]
[1747230904346,0.9417737,103880.0,103870.0,2.28942949]
[1747230904541,1.3734919,103880.0,103870.0,2.28942949]
[1747230904743,1.6847719,103880.0,103870.0,0.26583419]
[1747230905137,1.6847719,103880.0,103870.0,0.10383419]
[1747230905645,1.6847719,103880.0,103870.0,0.0075461]
[1747230905946,1.4430537,103880.0,103870.0,0.0075461]
[1747230906156,1.6847719,103880.0,103870.0,0.0075461]
[1747230906939,1.4430537,103880.0,103870.0,0.0075461]
[1747230907236,0.192538,103860.0,103850.0,0.033]
[1747230907434,1.124378,103860.0,103850.0,0.2255565]
[1747230907636,1.124378,103860.0,103850.0,0.32182605]
[1747230907637,1.332078,103860.0,103850.0,0.32182605]
[1747230907840,1.332078,103860.0,103850.0,0.33986955]
[1747230908040,1.332078,103860.0,103850.0,0.53242605]
[1747230908240,1.332078,103860.0,103850.0,0.69442605]
[1747230908436,1.021038,103860.0,103850.0,0.69442605]
[1747230908641,0.202538,103860.0,103850.0,1.25223955]
[1747230908854,0.202538,103860.0,103850.0,1.36163955]
[1747230909045,0.202538,103860.0,103850.0,1.12192135]
[1747230909655,0.192538,103860.0,103850.0,1.12192135]
[1747230909857,0.192538,103860.0,103850.0,1.12492135]
[1747230910035,0.297638,103860.0,103850.0,1.12292135]
[1747230910356,0.297638,103860.0,103850.0,1.11992135]
[1747230911235,1.3655562,103860.0,103850.0,0.81796485]
[1747230911440,1.80263418,103860.0,103850.0,0.29126955]
[1747230911648,1.61857609,103860.0,103850.0,0.29126955]
[1747230912046,1.80263418,103860.0,103850.0,0.29126955]
[1747230912241,0.1925565,103850.0,103840.0,0.1112]
[1747230912442,0.192575,103840.0,103830.0,0.21380003]
[1747230912653,1.461175,103840.0,103830.0,2.22248893]
[1747230912946,1.081175,103840.0,103830.0,2.31877702]
[1747230913152,1.081175,103840.0,103830.0,2.48077702]
[1747230913547,1.081175,103840.0,103830.0,2.29118342]
[1747230913750,1.32280206,103840.0,103830.0,0.26128812]
[1747230913943,1.99448206,103840.0,103830.0,0.26128812]
[1747230914147,1.130575,103840.0,103830.0,1.79188172]
[1747230914342,1.081015,103840.0,103830.0,0.81747702]
[1747230914544,0.6977974,103850.0,103840.0,0.192575]
[1747230914748,0.6977974,103850.0,103840.0,0.7181703]
[1747230914946,0.8076974,103850.0,103840.0,0.7181703]
[1747230915142,0.9141974,103850.0,103840.0,0.8801703]
[1747230915348,0.9141974,103850.0,103840.0,0.97646766]
[1747230916155,0.9441974,103850.0,103840.0,0.97646766]
[1747230916365,0.9441974,103850.0,103840.0,0.97846766]
[1747230916744,1.18582446,103850.0,103840.0,0.164]
[1747230916946,1.5979543,103850.0,103840.0,0.356575]
[1747230917144,1.2779543,103850.0,103840.0,0.45287236]
[1747230917354,1.2298112,103850.0,103840.0,0.67217236]
[1747230917553,1.47143826,103850.0,103840.0,0.67217236]
[1747230917739,1.65143826,103850.0,103840.0,0.67217236]
[1747230918140,1.65143826,103850.0,103840.0,0.47959736]
[1747230918441,1.84143826,103850.0,103840.0,0.164]
[1747230919054,1.85347382,103850.0,103840.0,0.164]
[1747230919357,1.84143826,103850.0,103840.0,0.002]
[1747230919757,1.5998112,103850.0,103840.0,0.29087236]
[1747230919953,0.6288112,103850.0,103840.0,0.81896766]
[1747230920256,0.3024565,103850.0,103840.0,1.58901543]
[1747230920654,0.3024565,103850.0,103840.0,1.34738837]
[1747230921257,0.1925565,103850.0,103840.0,1.34738837]
[1747230921457,0.9166625,103860.0,103850.0,0.1925565]
[1747230921754,0.9866625,103860.0,103850.0,0.5280953]
[1747230922059,0.1925565,103850.0,103840.0,1.86217991]
[1747230922352,0.82308356,103850.0,103840.0,0.6320041]
[1747230922552,0.6880565,103850.0,103840.0,0.6320041]
[1747230922858,0.6880565,103850.0,103840.0,0.8245791]
[1747230923041,0.6880565,103850.0,103840.0,0.9865791]
[1747230923355,0.6880565,103850.0,103840.0,0.7940041]
[1747230923750,1.0488565,103850.0,103840.0,0.16962071]
[1747230923959,0.8327565,103850.0,103840.0,0.98558837]
[1747230924252,0.8327565,103850.0,103840.0,0.98358837]
[1747230924457,0.9411565,103850.0,103840.0,0.98358837]
[1747230924857,1.18278356,103850.0,103840.0,0.47491807]
[1747230925252,1.36278356,103850.0,103840.0,0.47491807]
[1747230925455,1.0127565,103850.0,103840.0,0.98358837]
[1747230925748,0.6727565,103850.0,103840.0,0.79301337]
[1747230925955,0.7815565,103850.0,103840.0,0.66949307]
[1747230926543,0.7815565,103850.0,103840.0,0.47691807]
[1747230926746,0.9615565,103850.0,103840.0,0.47691807]
[1747230926958,0.9615565,103850.0,103840.0,0.16962071]
[1747230927260,1.20318356,103850.0,103840.0,0.00762071]
[1747230929052,1.20318356,103850.0,103840.0,0.21302071]
[1747230929752,1.20318356,103850.0,103840.0,0.40559571]
[1747230930046,0.4919565,103850.0,103840.0,0.88369101]
[1747230930252,0.3019565,103850.0,103840.0,0.97998837]
[1747230930456,0.3019565,103850.0,103840.0,1.08688837]
[1747230930659,0.192538,103860.0,103850.0,0.2888275]
[1747230930859,0.412538,103860.0,103850.0,1.10008736]
[1747230931053,0.412538,103860.0,103850.0,0.9723228]
[1747230931260,0.302538,103860.0,103850.0,2.56862016]
[1747230931761,0.77178617,103870.0,103860.0,0.192538]
[1747230931961,0.22348747,103870.0,103860.0,1.32116036]
[1747230932157,0.12218747,103870.0,103860.0,1.59006036]
[1747230932358,0.12218747,103870.0,103860.0,1.68634845]
[1747230932762,0.31470687,103870.0,103860.0,1.68634845]
[1747230933166,0.31470687,103870.0,103860.0,1.44472139]
[1747230933569,0.1935194,103870.0,103860.0,1.44472139]
[1747230933763,0.001,103870.0,103860.0,1.68634845]
[1747230933964,0.1965194,103870.0,103860.0,1.68634845]
[1747230935068,0.1935194,103870.0,103860.0,1.44472139]
[1747230935463,0.1935194,103870.0,103860.0,1.25218339]
[1747230935663,0.8344194,103870.0,103860.0,1.08392139]
[1747230935863,1.31794646,103870.0,103860.0,0.78448339]
[1747230936059,1.31694646,103870.0,103860.0,0.78648339]
[1747230936258,1.31694646,103870.0,103860.0,0.30838809]
[1747230936766,1.31694646,103870.0,103860.0,0.002]
[1747230936955,1.0753194,103870.0,103860.0,0.002]
[1747230937159,1.0753194,103870.0,103860.0,0.2141]
[1747230937366,1.0763194,103870.0,103860.0,0.2141]
[1747230937765,0.7155194,103870.0,103860.0,0.81901212]
[1747230938072,0.3036194,103870.0,103860.0,2.48101212]
[1747230938264,0.3026194,103870.0,103860.0,2.48101212]
[1747230938474,0.3056194,103870.0,103860.0,2.48101212]
[1747230939269,0.5166194,103870.0,103860.0,2.48101212]
[1747230939470,0.5166194,103870.0,103860.0,2.28847412]
[1747230939662,0.9829194,103870.0,103860.0,2.48101212]
[1747230940067,0.9829194,103870.0,103860.0,2.28847412]
[1747230940268,0.9829194,103870.0,103860.0,2.31901212]
[1747230940467,0.6221194,103870.0,103860.0,2.31901212]
[1747230940669,0.9799194,103870.0,103860.0,2.12647412]
[1747230940966,0.9809194,103870.0,103860.0,2.31901212]